fUSD/lending_fUSD_20240901
["ID","MTS","AMOUNT","RATE_DAILY","PERIOD"]
[336798935,1725166246388,-458.27649239,0.00013,2]
[336798936,1725166246399,-506.28464956,0.00013,2]
[336798937,1725166246410,-1295.87497203,0.00013,2]
[336798938,1725166246428,-609.53823585,0.00013,2]
[336798939,1725166246439,-8924.9356803,0.00013,2]
[336798940,1725166246449,-310.45972455,0.00013,2]
[336798941,1725166246460,-11753.76194839,0.00013,2]
[336800389,1725166532509,688.84,9.906e-05,2]
[336800390,1725166673021,165.08,9.445e-05,2]
[336800391,1725166920712,830.93,0.00010959,2]
[336800392,1725167071516,156.88,0.00010959,2]
[336800394,1725167076833,717.76,9.836e-05,2]
[336800399,1725167432191,-616.0,0.00011724,2]
[336800400,1725167432200,-250.0,0.00011724,2]
[336800401,1725167432212,-250.0,0.00011729,2]
[336800402,1725167432221,-1206.16,0.0001174,2]
[336800403,1725167432230,-155.47,0.0001175,2]
[336800404,1725167432239,-250.0,0.00011762,2]
[336800405,1725167432248,-220.02,0.00011771,2]
[336800406,1725167432258,-553.3984004,0.00011783,2]
[336800407,1725167432268,-300.0,0.00011788,2]
[336800408,1725167432277,-1002.23884712,0.00011789,2]
[336800409,1725167432301,-3225.0,0.00011789,2]
[336800410,1725167432364,-2705.49053353,0.00011789,2]
[336800411,1725167432424,-1456.79055091,0.00011789,2]
[336800412,1725167432435,-6453.91006844,0.00011789,2]
[336800413,1725167432445,-384.0,0.0001179,2]
[336800414,1725167432455,-19039.21526749,0.0001179,2]
[336800415,1725167432466,-22601.53473251,0.0001179,2]
[336800416,1725167432475,-717.76,0.000121,2]
[336800417,1725167432484,-222.0,0.0001217,2]
[336800418,1725167432494,-205.94,0.00012317,2]
[336800419,1725167432504,-600.0,0.000125,4]
[336800420,1725167432514,-233.95,0.0001256,2]
[336800421,1725167432522,-1200.0,0.000126,4]
[336800422,1725167432532,-1900.0,0.000127,4]
[336800423,1725167432541,-150.0,0.00012731,2]
[336800424,1725167432550,-150.0,0.00012737,2]
[336800425,1725167432559,-150.0,0.00012739,2]
[336800426,1725167432568,-150.0,0.00012758,2]
[336800427,1725167432578,-150.0,0.00012767,2]
[336800428,1725167432587,-150.0,0.00012787,2]
[336800429,1725167432597,-13459.0,0.00012796,2]
[336800430,1725167432606,-1146.463,0.00012796,2]
[336800431,1725167432614,-1080.445,0.00012796,2]
[336800432,1725167432625,-150.0,0.00012796,2]
[336800433,1725167432634,-150.0,0.00012799,2]
[336800434,1725167432643,-6555.97595775,0.000128,2]
[336800437,1725167438308,-2516.26034272,0.0001175,2]
[336800439,1725167438320,-524.27067039,0.0001175,2]
[336800440,1725167438414,-1799.39232638,0.0001175,2]
[336800441,1725167438423,-7168.83914225,0.000128,2]
[336800442,1725167438432,-496.2913,0.000128,2]
[336800443,1725167438442,-1682.2527,0.000128,2]
[336800444,1725167438451,-13173.415,0.000128,2]
[336800445,1725167438461,-2500.0,0.000128,2]
[336800446,1725167438470,-2500.0,0.000128,2]
[336800447,1725167438480,-433.2501,0.000128,2]
[336800448,1725167438489,-718.3116,0.000128,2]
[336800449,1725167438499,-5739.678,0.000128,2]
[336800450,1725167438508,-2920.9416,0.000128,2]
[336800451,1725167438518,-247.9946,0.000128,2]
[336800452,1725167438527,-170.47038926,0.000128,2]
[336800453,1725167438536,-2500.0,0.000128,4]
[336800454,1725167438545,-345.36063455,0.000128,2]
[336800455,1725167438554,-2500.0,0.000128,2]
[336800456,1725167438563,-150.0,0.00012817,2]
[336800457,1725167438572,-150.0,0.00012821,2]
[336800458,1725167438582,-150.0,0.0001283,2]
[336800459,1725167438591,-150.0,0.00012835,2]
[336800460,1725167438600,-5133.82065588,0.00012836,2]
[336800461,1725167438610,-150.0,0.00012855,2]
[336800462,1725167438619,-150.0,0.00012873,2]
[336800463,1725167438634,-150.0,0.00012882,2]
[336800464,1725167438645,-150.0,0.0001289,2]
[336800465,1725167438655,-500.0,0.00012895,2]
[336800466,1725167438664,-500.0,0.00012896,2]
[336800467,1725167438673,-756.3379,0.000129,2]
[336800468,1725167438682,-44927.71044194,0.000129,2]
[336800469,1725167438694,-663.2,0.000129,2]
[336800470,1725167438705,-2510.72,0.000129,2]
[336800471,1725167438716,-6726.37280016,0.000129,2]
[336800472,1725167438741,-45171.9967579,0.000129,2]
[336800473,1725167438750,-1365.8326,0.000129,2]
[336800475,1725167438760,-26313.83420097,0.000129,2]
[336800477,1725167438770,-140533.99345,0.000129,2]
[336800479,1725167438782,-1915.14999999,0.000129,2]
[336800481,1725167438794,-293.94488672,0.000129,2]
[336800483,1725167438805,-434.71775321,0.000129,2]
[336800486,1725167438817,-364.0,0.000129,2]
[336800488,1725167438828,-470.83343635,0.000129,2]
[336800490,1725167438839,-380.0,0.000129,2]
[336800492,1725167438850,-285.763033,0.000129,2]
[336800494,1725167438861,-700.54689836,0.000129,2]
[336800498,1725167438886,-73307.2163414,0.000129,2]
[336800499,1725167438896,-633.8743,0.000129,2]
[336800501,1725167438905,-1000.0,0.000129,2]
[336800502,1725167438914,-500.0,0.000129,2]
[336800504,1725167438923,-293.479,0.000129,2]
[336800506,1725167438933,-169.91371438,0.000129,2]
[336800508,1725167438942,-3100.0,0.000129,4]
[336800510,1725167438951,-7106.90865003,0.000129,2]
[336800512,1725167438960,-7500.0,0.000129,2]
[336800514,1725167438969,-150.0,0.00012905,2]
[336800516,1725167438979,-420.0,0.00012943,2]
[336800517,1725167438988,-150.0,0.00012958,2]
[336800519,1725167438997,-895.28572511,0.00012968,10]
[336800521,1725167439006,-150.0,0.00012971,2]
[336800523,1725167439015,-501.17200511,0.00012973,2]
[336800525,1725167439024,-3916.49518674,0.00012976,2]
[336800527,1725167439034,-150.0,0.00012988,2]
[336800529,1725167439043,-150.0,0.0001299,2]
[336800531,1725167439052,-7658.6120452,0.00012996,2]
[336800533,1725167439061,-1630.8847025,0.00012996,2]
[336800535,1725167439070,-11656.9290524,0.00012996,2]
[336800537,1725167439080,-464.3099115,0.00012996,2]
[336800539,1725167439089,-1304.59980133,0.00012997,2]
[336800541,1725167439098,-10436.79841064,0.00012997,2]
[336800543,1725167439107,-567.4801,0.00012999,2]
[336800545,1725167439117,-1196.29288932,0.00012999,3]
[336800546,1725167439126,-1196.29288932,0.00012999,3]
[336800548,1725167439136,-1000.0,0.00012999,2]
[336800550,1725167439145,-846.0,0.00013,2]
[336800552,1725167439154,-424238.93781174,0.00013,2]
[336800554,1725167439165,-40166.32635997,0.00013,2]
[336800603,1725167439649,-2446037.29168542,0.00013,2]
[336800604,1725167439658,-762569.36193196,0.00013,2]
[336800606,1725167439667,-1000.0,0.00013,2]
[336800608,1725167439676,-1000.0,0.00013,2]
[336800610,1725167439686,-1000.0,0.00013,2]
[336800612,1725167439695,-1000.0,0.00013,2]
[336800614,1725167439704,-1000.0,0.00013,2]
[336800616,1725167439713,-342.96019549,0.00013,2]
[336800618,1725167439722,-150.0,0.00013,2]
[336800620,1725167439731,-1000.0,0.00013,2]
[336800622,1725167439739,-3086.5994,0.00013,2]
[336800624,1725167439748,-226.0,0.00013,2]
[336800626,1725167439757,-1049.3404,0.00013,2]
[336800627,1725167439767,-1005.0,0.00013,2]
[336800629,1725167439776,-358.0,0.00013,2]
[336800631,1725167439785,-1661.0988,0.00013,2]
[336800633,1725167439794,-484.23748,0.00013,2]
[336800635,1725167439803,-364.15,0.00013,2]
[336800637,1725167439812,-5049.03389869,0.0001305,2]
[336800639,1725167439822,-616.0,0.00013189,2]
[336800641,1725167439831,-384.0,0.00013264,2]
[336800643,1725167439839,-1000.0,0.000135,2]
[336800645,1725167439849,-160.74,0.00013699,2]
[336800647,1725167439857,-18304.83387095,0.00013699,2]
[336800650,1725167439873,-5041.6,0.00013699,2]
[336800691,1725167440283,-502.25331931,0.00012973,2]
[336800693,1725167440295,-203.78668069,0.00013699,2]
[336800695,1725167440307,-438.71170184,0.00013699,2]
[336800700,1725167440345,-397.63098387,0.00013699,2]
[336800702,1725167440358,-370.12127459,0.00013699,2]
[336800704,1725167440370,-26393.37548806,0.00013699,2]
[336800706,1725167440381,-2751.0,0.00013699,2]
[336800708,1725167440390,-200.0,0.00013699,2]
[336800710,1725167440401,-150.0,0.00013699,2]
[336800712,1725167440410,-150.0,0.000137,2]
[336800714,1725167440422,-243.32010192,0.00013773,2]
[336800716,1725167440431,-244.62,0.000138,2]
[336800718,1725167440440,-54434.82433093,0.000138,3]
[336800720,1725167440453,-516.437086,0.000138,3]
[336800723,1725167440466,-9521.59992865,0.000138,3]
[336800725,1725167440477,-420.67735035,0.000138,3]
[336800728,1725167440497,-703.655,0.000138,3]
[336800730,1725167440507,-65220.33347668,0.000138,3]
[336800732,1725167440519,-661.0,0.000138,3]
[336800733,1725167440530,-8821.75096878,0.000138,3]
[336800734,1725167440541,-5000.00000003,0.000138,3]
[336800735,1725167440656,-1934.61060044,0.000138,3]
[336800736,1725167440667,-111855.72390297,0.000138,3]
[336800737,1725167440677,-28500.0,0.000138,3]
[336800738,1725167440688,-19375.68017879,0.000138,3]
[336800739,1725167440706,-266.22286776,0.000138,3]
[336800768,1725167440958,-415.1,0.000138,3]
[336800769,1725167440976,-6309.1,0.000138,3]
[336800771,1725167440987,-1609.12510539,0.000138,3]
[336800774,1725167441002,-1705.11928477,0.000138,3]
[336800776,1725167441012,-10795.95706516,0.000138,3]
[336800989,1725167443301,-430.65367495,0.000138,3]
[336800995,1725167443358,-5626.523833,0.000138,3]
[336800997,1725167443371,-1305.44995977,0.000138,3]
[336801000,1725167443383,-7707.22865925,0.000138,3]
[336801002,1725167443394,-2421.6,0.000138,3]
[336801005,1725167443418,-394.58101345,0.000138,3]
[336801061,1725167443926,-592.3999995,0.000138,3]
[336801063,1725167443937,-296.13443335,0.000138,3]
[336801065,1725167443950,-584.7698539,0.000138,3]
[336801068,1725167443962,-3079.99995,0.000138,3]
[336801070,1725167443975,-707.3898016,0.000138,3]
[336801074,1725167444001,-2126.874996,0.000138,3]
[336801076,1725167444013,-1388.82081271,0.000138,3]
[336801078,1725167444024,-1732.88242047,0.000138,3]
[336801081,1725167444036,-640.224,0.000138,3]
[336801083,1725167444048,-604.07802196,0.000138,3]
[336801085,1725167444059,-1052.40263511,0.000138,3]
[336801088,1725167444078,-109853.43135428,0.000138,3]
[336801090,1725167444088,-795.0,0.00013897,2]
[336801092,1725167444098,-180.039357,0.000139,2]
[336801094,1725167444107,-180.039357,0.000139,2]
[336801096,1725167444116,-123258.586586,0.000139,3]
[336801098,1725167444125,-150.0,0.000139,2]
[336801100,1725167444135,-173.1,0.00013972,2]
[336801102,1725167444145,-6475.73608328,0.00014,6]
[336801104,1725167444154,-267.28757611,0.00014,2]
[336801106,1725167444163,-30024.54306547,0.00014,4]
[336801108,1725167444172,-255.0,0.00014,2]
[336801110,1725167444181,-151.0,0.00014,2]
[336801112,1725167444190,-278.09697,0.00014,2]
[336801114,1725167444200,-151.0,0.00014,2]
[336801116,1725167444211,-151.0,0.00014,2]
[336801118,1725167444226,-151.0,0.00014,2]
[336801120,1725167444236,-206.0,0.0001407,2]
[336801122,1725167444245,-153.738915,0.0001407,2]
[336801124,1725167444254,-233.95,0.00014129,2]
[336801126,1725167444265,-587.0,0.00014212,2]
[336801128,1725167444274,-500.0,0.00014333,2]
[336801130,1725167444283,-717.76,0.00014364,2]
[336801132,1725167444294,-1098.54,0.00014466,2]
[336801134,1725167444303,-795.0,0.00014628,2]
[336801136,1725167444312,-616.0,0.00014655,2]
[336801138,1725167444322,-384.0,0.00014738,2]
[336801140,1725167444331,-153.179,0.00014796,2]
[336801142,1725167444340,-583.11931616,0.00014881,2]
[336801144,1725167444349,-1933.73263525,0.00015,2]
[336801146,1725167444358,-753.54480928,0.00015,2]
[336801148,1725167444368,-81723.74717626,0.00015,2]
[336801151,1725167444378,-11107.22089134,0.00015,2]
[336801153,1725167444387,-496.0,0.00015,2]
[336801155,1725167444397,-5330.0,0.00015,2]
[336801157,1725167444407,-1167.0,0.00015,2]
[336801159,1725167444416,-169.91371436,0.00015012,2]
[336801161,1725167444426,-206.0,0.0001506,2]
[336801163,1725167444436,-173.1,0.00015369,2]
[336801165,1725167444447,-795.0,0.00015398,2]
[336801167,1725167444456,-42688.0,0.000154,2]
[336801169,1725167444466,-823.0,0.00015605,2]
[336801171,1725167444477,-233.95,0.00015699,2]
[336801173,1725167444488,-11504.0,0.000157,3]
[336801175,1725167444498,-167.0,0.00015831,2]
[336801176,1725167444507,-167.0,0.00015831,2]
[336801177,1725167444516,-11504.0,0.000159,5]
[336801178,1725167444525,-150.0,0.00015973,2]
[336801179,1725167444534,-206.0,0.0001605,2]
[336801180,1725167444543,-300.53,0.00016116,2]
[336801181,1725167444552,-616.0,0.0001612,2]
[336801182,1725167444562,-795.0,0.00016209,2]
[336801183,1725167444571,-384.0,0.00016212,2]
[336801185,1725167444580,-5814.39,0.00016438,2]
[336801187,1725167444589,-220.02,0.0001648,2]
[336801188,1725167444599,-167.0,0.00016484,2]
[336801189,1725167444607,-717.76,0.00016628,2]
[336801190,1725167444616,-174.04,0.00016712,2]
[336801191,1725167444626,-173.1,0.00016767,2]
[336801192,1725167444637,-206.0,0.0001705,2]
[336801193,1725167444646,-795.0,0.00017062,2]
[336801194,1725167444656,-169.91371436,0.00017124,2]
[336801195,1725167444665,-1152.0,0.00017134,2]
[336801196,1725167444674,-167.0,0.00017137,2]
[336801197,1725167444684,-233.95,0.00017269,2]
[336801198,1725167444693,-90184.19,0.000173,2]
[336801199,1725167444702,-616.0,0.00017586,2]
[336801200,1725167444712,-153.41,0.00017592,2]
[336801201,1725167444722,-155.47,0.00017625,2]
[336801202,1725167444732,-384.0,0.00017685,2]
[336801203,1725167444743,-167.0,0.00017791,2]
[336801204,1725167444752,-795.0,0.0001796,2]
[336801205,1725167444764,-1000.0,0.00018,6]
[336801206,1725167444773,-484.23748,0.00018,2]
[336801207,1725167444783,-206.0,0.0001804,2]
[336801208,1725167444794,-7106.90865003,0.0001818,2]
[336801209,1725167444804,-355.0,0.000184,2]
[336801210,1725167444815,-167.0,0.00018444,2]
[336801211,1725167444825,-16931.33808431,0.00018562,2]
[336801212,1725167444836,-1613.0,0.00018813,2]
[336801213,1725167444846,-233.95,0.00018839,2]
[336801214,1725167444857,-717.76,0.00018892,2]
[336801215,1725167444868,-795.0,0.00018905,2]
[336801216,1725167444879,-206.0,0.0001903,2]
[336801217,1725167444889,-169.91371436,0.00019236,2]
[336801218,1725167444900,-43632.59,0.000193,2]
[336801219,1725167444910,-151.15,0.00019452,2]
[336801220,1725167444921,-150.0,0.00019452,2]
[336801221,1725167444934,-150.0,0.00019452,2]
[336801222,1725167444946,-150.0,0.00019452,2]
[336801223,1725167444956,-152.0,0.00019691,3]
[336801224,1725167444966,-849.69,0.000197,7]
[336801225,1725167444976,-326.0,0.0001984,2]
[336801226,1725167444986,-795.0,0.000199,2]
[336801227,1725167444995,-1359.43343382,0.0002,2]
[336801228,1725167445005,-993.0,0.0002,2]
[336801229,1725167445016,-500.0,0.0002,10]
[336801230,1725167445025,-1000.0,0.0002,8]
[336801231,1725167445036,-250.0,0.0002,8]
[336801232,1725167445045,-993.0,0.0002,2]
[336801233,1725167445054,-1000.0,0.0002,2]
[336801234,1725167445063,-206.0,0.0002003,2]
[336801235,1725167445072,-160.74,0.00020091,2]
[336801236,1725167445081,-152.0,0.00020623,4]
[336801237,1725167445091,-2258.0,0.00020657,2]
[336801238,1725167445100,-150.91,0.00020904,2]
[336801239,1725167445110,-150.0,0.00020904,2]
[336801240,1725167445119,-150.0,0.00020904,2]
[336801241,1725167445129,-150.0,0.00020904,2]
[336801242,1725167445138,-150.0,0.00020904,2]
[336801243,1725167445147,-150.0,0.00020904,2]
[336801244,1725167445156,-150.0,0.00020904,2]
[336801245,1725167445166,-150.0,0.00020904,2]
[336801246,1725167445175,-150.0,0.00020904,2]
[336801247,1725167445184,-795.0,0.00020947,2]
[336801248,1725167445193,-1000.0,0.00021,10]
[336801249,1725167445202,-1000.0,0.00021,8]
[336801250,1725167445215,-1001.22,0.00021,2]
[336801251,1725167445224,-287.254299,0.00021,2]
[336801252,1725167445233,-206.0,0.0002102,2]
[336801253,1725167445243,-208.0,0.0002106,2]
[336801254,1725167445253,-717.76,0.00021156,2]
[336801255,1725167445263,-43632.59,0.000213,2]
[336801256,1725167445272,-169.91371436,0.00021348,2]
[336801257,1725167445281,-152.0,0.00021554,5]
[336801258,1725167445290,-163.46,0.00021589,30]
[336801259,1725167445302,-151.0,0.00021676,2]
[336801260,1725167445311,-2941.4,0.00021918,2]
[336801261,1725167445321,-150.0,0.00021918,2]
[336801262,1725167445331,-2300.49,0.00021918,2]
[336801263,1725167445340,-500.0,0.00021918,2]
[336801264,1725167445350,-795.0,0.00021995,2]
[336801265,1725167445360,-1311.93598184,0.00022,22]
[336801266,1725167445370,-228.0,0.00022,10]
[336801267,1725167445380,-150.0,0.00022,7]
[336801268,1725167445390,-206.0,0.0002201,2]
[336801269,1725167445399,-208.0,0.0002205,2]
[336801270,1725167445410,-400.57350086,0.0002217,2]
[336801271,1725167445420,-1000.0,0.00022199,7]
[336801272,1725167445429,-1846.599999,0.000222,2]
[336801273,1725167445439,-3000.0,0.000222,2]
[336801274,1725167445448,-150.0,0.000222,10]
[336801275,1725167445458,-508.945282,0.000222,2]
[336801276,1725167445468,-3086.5994,0.000222,2]
[336801277,1725167445478,-1049.3404,0.000222,2]
[336801278,1725167445487,-1661.0988,0.000222,2]
[336801279,1725167445498,-1001.22,0.00022275,2]
[336801280,1725167445507,-1000.0,0.00022466,2]
[336801281,1725167445518,-152.0,0.00022486,6]
[336801282,1725167445529,-150.0,0.00022495,2]
[336801283,1725167445539,-3162.0,0.00022682,2]
[336801284,1725167445549,-150.0,0.000227,10]
[336801285,1725167445559,-3600.0,0.00022732,2]
[336801286,1725167445571,-800.0,0.00022732,2]
[336801287,1725167445581,-4200.0,0.00022732,2]
[336801288,1725167445592,-325.92,0.00023,15]
[336801289,1725167445601,-200.0,0.00023,2]
[336801290,1725167445610,-2262.64895151,0.00023,2]
[336801291,1725167445621,-150.0,0.00023,2]
[336801292,1725167445631,-150.0,0.00023,7]
[336801293,1725167445640,-484.23748,0.00023,2]
[336801294,1725167445651,-173.0,0.00023,2]
[336801295,1725167445660,-1000.0,0.0002301,3]
[336801296,1725167445670,-1000.0,0.0002301,3]
[336801297,1725167445680,-1000.0,0.0002301,3]
[336801298,1725167445690,-206.0,0.0002301,2]
[336801299,1725167445699,-208.0,0.0002304,2]
[336801300,1725167445708,-154.542162,0.00023047,5]
[336801301,1725167445718,-150.0,0.00023071,2]
[336801302,1725167445727,-795.0,0.00023095,2]
[336801303,1725167445736,-43632.59,0.000231,7]
[336801304,1725167445745,-500.0,0.00023192,2]
[336801305,1725167445755,-150.0,0.000232,11]
[336801306,1725167445764,-500.0,0.00023201,2]
[336801307,1725167445774,-180.0,0.00023205,2]
[336801308,1725167445783,-500.0,0.0002321,2]
[336801309,1725167445793,-500.0,0.00023218,2]
[336801310,1725167445802,-500.0,0.00023227,2]
[336801311,1725167445811,-500.0,0.00023236,2]
[336801312,1725167445822,-500.0,0.00023245,2]
[336801313,1725167445832,-500.0,0.00023254,2]
[336801314,1725167445842,-500.0,0.00023262,2]
[336801315,1725167445851,-500.0,0.00023271,2]
[336801316,1725167445860,-500.0,0.0002328,2]
[336801317,1725167445869,-500.0,0.00023287,2]
[336801318,1725167445880,-500.0,0.00023289,2]
[336801319,1725167445890,-500.0,0.00023298,2]
[336801320,1725167445900,-2000.0,0.000233,2]
[336801321,1725167445910,-328.0,0.000233,2]
[336801322,1725167445919,-774.28879086,0.000233,2]
[336801323,1725167445928,-574.54339121,0.000233,2]
[336801324,1725167445938,-1000.0,0.000233,2]
[336801325,1725167445948,-200.0,0.000233,2]
[336801326,1725167445958,-152.0,0.00023417,7]
[336801327,1725167445967,-717.76,0.00023419,2]
[336801328,1725167445977,-169.91371436,0.0002346,2]
[336801329,1725167445986,-7106.90865003,0.0002346,2]
[336801330,1725167445996,-500.0,0.00023496,2]
[336801331,1725167446005,-66963.87458434,0.00023497,45]
[336801332,1725167446019,-635.8192291,0.00023497,45]
[336801334,1725167446031,-5781.58274695,0.00023497,45]
[336801335,1725167446041,-180.039357,0.00023497,7]
[336801336,1725167446049,-180.039357,0.00023497,7]
[336801337,1725167446059,-1000.0,0.000235,2]
[336801338,1725167446069,-1000.0,0.000235,2]
[336801339,1725167446078,-1000.0,0.000235,2]
[336801340,1725167446087,-1000.0,0.000235,2]
[336801341,1725167446096,-1000.0,0.000235,2]
[336801342,1725167446105,-1000.0,0.000235,2]
[336801343,1725167446117,-1000.0,0.000235,2]
[336801344,1725167446126,-1000.0,0.000235,2]
[336801345,1725167446136,-1000.0,0.000235,2]
[336801346,1725167446145,-496.0,0.000235,6]
[336801347,1725167446155,-151.0,0.000235,7]
[336801348,1725167446164,-194.0,0.000235,6]
[336801349,1725167446174,-9024.33853905,0.00023528,2]
[336801350,1725167446185,-247.84367745,0.00023528,2]
[336801351,1725167446194,-1974.4909452,0.00023528,2]
[336801352,1725167446203,-9953.26537735,0.00023528,2]
[336801353,1725167446740,-2406.85455767,0.000128,2]
[336801354,1725167446755,-335.60142443,0.000128,2]
[336801355,1725167446766,-3645.38624939,0.000128,2]
[336801356,1725167446777,-18489.299042,0.000128,2]
[336801357,1725167446788,-663.02749647,0.000128,2]
[336801358,1725167446799,-573.43013765,0.000128,2]
[336801359,1725167446811,-532.0060911,0.000128,2]
[336801360,1725167446830,-1370.5674735,0.000128,2]
[336801361,1725167446841,-62003.14113327,0.000128,2]
[336801362,1725167446856,-362.3448,0.000128,2]
[336801363,1725167446875,-4017.62324958,0.000128,2]
[336801364,1725167446887,-500.0,0.000128,2]
[336801365,1725167446903,-9031.66202196,0.000128,2]
[336801366,1725167446914,-2983.5989,0.000128,2]
[336801367,1725167446925,-3765.69953211,0.000128,2]
[336801368,1725167446936,-970.74420354,0.000128,2]
[336801369,1725167446947,-353.68141749,0.000128,2]
[336801370,1725167446962,-748.82902201,0.000128,2]
[336801371,1725167446973,-275.5687984,0.000128,2]
[336801372,1725167446986,-78658.03237406,0.000128,2]
[336801373,1725167446997,-1613.48867776,0.000128,2]
[336801374,1725167550109,2000.0,0.00019543,120]
[336801376,1725167721113,153.41,0.00010959,2]
[336801377,1725167721138,1.3,0.00010959,2]
[336801378,1725168234246,150.0,0.00010959,2]
[336801379,1725168234269,3.42,0.00010959,2]
[336801380,1725168329486,150.0,0.000101,2]
[336801381,1725168329508,150.0,0.000101,2]
[336801382,1725168329534,150.0,0.000101,2]
[336801383,1725168329561,150.0,0.000101,2]
[336801384,1725168329583,150.0,0.000101,2]
[336801385,1725168329620,150.0,0.000101,2]
[336801386,1725168329644,150.0,0.000101,2]
[336801387,1725168329666,150.0,0.000101,2]
[336801388,1725168329687,150.0,0.000101,2]
[336801389,1725168329710,150.0,0.000101,2]
[336801390,1725168329732,150.0,0.000101,2]
[336801391,1725168329752,150.0,0.000101,2]
[336801392,1725168329772,150.0,0.000101,2]
[336801393,1725168329793,150.0,0.000101,2]
[336801394,1725168329812,150.0,0.000101,2]
[336801395,1725168329832,150.0,0.000101,2]
[336801396,1725168329856,150.0,0.000101,2]
[336801397,1725168329876,150.0,0.000101,2]
[336801398,1725168329896,150.0,0.000101,2]
[336801399,1725168329917,150.0,0.000101,2]
[336801400,1725168329937,150.0,0.000101,2]
[336801401,1725168329957,150.0,0.000101,2]
[336801402,1725168329977,150.0,0.000101,2]
[336801403,1725168329997,150.0,0.000101,2]
[336801404,1725168330017,150.0,0.000101,2]
[336801405,1725168330037,150.0,0.000101,2]
[336801406,1725168330057,150.0,0.000101,2]
[336801407,1725168330077,150.0,0.000101,2]
[336801408,1725168330098,150.0,0.000101,2]
[336801409,1725168330119,150.0,0.000101,2]
[336801410,1725168330140,150.0,0.000101,2]
[336801411,1725168330161,150.0,0.000101,2]
[336801412,1725168330188,1357.77881402,0.000101,2]
[336801413,1725168332473,-222.05041088,0.0001099,2]
[336801414,1725168332897,-199.53964789,0.0001099,2]
[336801415,1725168333914,150.0,0.0001,2]
[336801416,1725168333940,79.08946716,0.0001,2]
[336801417,1725168360374,150.0,9e-05,2]
[336801418,1725168360395,10.67175595,9e-05,2]
[336801419,1725168470776,-238.64871812,0.00010999,2]
[336801420,1725168471158,-150.0,0.00010999,2]
[336801421,1725168478496,7149.28810186,0.0001,2]
[336801422,1725168514549,-238.64871812,0.00010999,2]
[336801423,1725168514859,-238.64871812,0.00010999,2]
[336801424,1725168515153,-22.70256376,0.00010999,2]
[336801425,1725168515176,-215.94615436,0.00010999,2]
[336801426,1725168515449,-238.64871812,0.00010999,2]
[336801427,1725168515749,-45.40512752,0.00010999,2]
[336801428,1725168515774,-193.2435906,0.00010999,2]
[336801429,1725168516084,-238.64871812,0.00010999,2]
[336801430,1725168516313,-65.82139547,0.00010999,2]
[336801443,1725168602140,-238.64871812,0.00010999,2]
[336801444,1725168612683,-61.35128188,0.00010999,2]
[336801445,1725168612707,-150.0,0.00010999,2]
[336801446,1725168614439,-162.55,0.0001099,2]
[336801447,1725168617477,706.1,0.00010049,2]
[336801456,1725168631408,-5644.64864698,0.00011,2]
[336801458,1725168631419,-1879.8522855,0.00011,2]